[Event "FIDE WSTC Open 50 2025"]
[Site "Prague"]
[Date "2025.02.25"]
[Round "8.1"]
[White "Adams, Michael"]
[Black "Ehlvest, Jaan"]
[Result "1/2-1/2"]
[Annotator "TA"]
[ECO "C70"]
[WhiteElo "2664"]
[BlackElo "2531"]
[PlyCount "71"]
[EventDate "2025.02.17"]
[EventType "team-tourn"]
[EventCountry "CZE"]
[SourceTitle "playchess.com"]
[Source "ChessBase"]
[SourceQuality "1"]
[TimeControl "40/5400+30:1800+30"]

{[%evp 16,71,36,50,23,20,27,29,28,29,47,16,17,22,25,29,25,33,24,22,30,20,22,35,21,12,47,0,25,44,61,39,41,9,16,0,14,8,12,4,18,0,0,0,27,0,8,6,41,31,28,0,0,0,0,0,0,0]} 1. e4 {[%emt 0:00:05]} e5 {[%emt 0:00:08]} 2. Nf3 {[%emt 0:00:07]} Nc6 {[%emt 0:00:08]} 3. Bb5 {[%emt 0:00:05]} a6 {[%emt 0:00:07]} 4. Ba4 {[%emt 0:00:06]} b5 {[%emt 0:00:06]} 5. Bb3 {[%emt 0:00:05]} Na5 {[%emt 0:00:05]} 6. O-O d6 7. d4 {[%emt 0:03:42]} exd4 {[%emt 0:00:48]} 8. Nxd4 {[%emt 0:02:38]} Bb7 {[%emt 0:00:12] [#]} 9. c4 $1 {[%emt 0:07:08]} c5 {[%emt 0:02:03] C70: Ruy Lopez: 3...a6 4 Ba4, Norwegian and Delayed Schliemann.} 10. Nf5 {[%emt 0:01:30][%cal Bd4f5,Bf5e3,Be3d5][%mdl 32]} g6 {[%emt 0:01:24]} 11. Ne3 {[%emt 0:01:25]} Nf6 {[%emt 0:02:13] White has an edge.} 12. Nc3 {[%emt 0:01:42]} Bc6 $146 {[%emt 0:23:25]} (12... Nxb3 13. axb3 b4 14. Ncd5 Bg7 15. Nxf6+ Qxf6 16. Nd5 Qd8 17. Re1 O-O 18. Re2 Re8 {½-½ Smirin,I (2648)-Mamedyarov,S (2721) Baku op 2009 (8)}) 13. Ned5 {[%emt 0:14:47] [#]} Bg7 {[%emt 0:17:50]} 14. Bg5 {[%emt 0:02:59] aiming for Qf3.} h6 $1 {[%emt 0:00:18]} 15. Bxf6 {[%emt 0:10:41]} Bxf6 {[%emt 0:00:09]} 16. cxb5 {[%emt 0:00:13]} axb5 {[%emt 0:01:35]} 17. Nxf6+ {[%emt 0:03:12]} Qxf6 {[%emt 0:00:13]} 18. Bd5 {[%emt 0:09:14]} O-O {[%emt 0:02:04]} 19. a3 {[%emt 0:03:05]} Bxd5 {[%emt 0:06:25]} 20. Qxd5 {[%emt 0:01:03]} Rab8 {[%emt 0:00:38]} 21. h3 {[%emt 0:06:04]} (21. Qd3 $14) 21... Rfe8 {[%emt 0:05:54]} 22. Qd3 {[%emt 0:02:13]} Kg7 {[%emt 0:04:39]} 23. Rfe1 {[%emt 0:03:57][%cal Oa1d1]} (23. Nxb5 $2 {too greedy.} c4 24. Qe2 (24. Qd5 $2 Re5 $19) 24... Rxb5 $19) 23... Nc4 {[%emt 0:04:58]} 24. Re2 {[%emt 0:00:31]} Ne5 {[%emt 0:05:39][%cal Bc4e5,Be5c6,Bc6d4][%mdl 32]} 25. Qd2 {[%emt 0:00:37]} Nc6 {[%emt 0:03:16]} 26. Rd1 {[%emt 0:00:11][%cal Oc3d5]} Nd4 {[%emt 0:02:35][%cal Ob5b4]} 27. Re3 {[%emt 0:00:07]} Qh4 {[%emt 0:00:52]} 28. Ne2 {[%emt 0:04:53]} Nxe2+ {[%emt 0:01:16]} (28... Rxe4 {simplifies} 29. Rxe4 Qxe4 30. Nxd4 cxd4 31. Qxd4+ Qxd4 32. Rxd4 Rc8) 29. Qxe2 {[%emt 0:00:11]} Re6 {[%emt 0:02:00]} 30. Rd5 {[%emt 0:01:40]} Qe7 {[%emt 0:01:18]} 31. b4 {[%emt 0:06:42]} cxb4 {[%emt 0:05:18]} 32. axb4 {[%emt 0:02:25][%cal Of2f3]} ({But not} 32. Rxb5 Rxb5 33. Qxb5 bxa3 $15 (33... Rxe4 34. Rxe4 Qxe4 35. axb4 $11)) 32... Re5 {[%emt 0:00:08]} 33. Qd3 {[%emt 0:03:06]} Rxd5 {[%emt 0:02:12] The position is equal.} 34. Qxd5 {[%emt 0:00:09]} Qe5 {[%emt 0:00:28]} 35. Rd3 {[%emt 0:03:51]} Rc8 {[%emt 0:00:46] and ...Rc1+ would now be decisive} 36. Qxe5+ {[%emt 0:00:08] Weighted Error Value: White=0.09 (flawless) /Black=0.08 (flawless)   Mistake:       	White=1     	---        Inaccurate:     	White=4     	Black=3      OK:         	White=8     	Black=11     Best:        	---       	Black=1      Strong:       	---       	Black=1} 1/2-1/2

[Event "FIDE WSTC Open 50 2025"]
[Site "Prague"]
[Date "2025.02.25"]
[Round "8.2"]
[White "Shabalov, Alexander"]
[Black "Conquest, Stuart C"]
[Result "1/2-1/2"]
[Annotator "TA"]
[ECO "B36"]
[WhiteElo "2471"]
[BlackElo "2513"]
[PlyCount "104"]
[EventDate "2025.02.17"]
[EventType "team-tourn"]
[EventCountry "CZE"]
[SourceTitle "playchess.com"]
[Source "ChessBase"]
[SourceQuality "1"]
[TimeControl "40/5400+30:1800+30"]

{[%evp 27,104,59,60,58,64,54,69,52,66,58,68,46,57,49,50,54,85,81,90,70,93,79,76,84,94,67,120,91,63,0,0,0,0,0,0,-11,0,0,0,-14,13,16,14,-59,-71,-61,-56,-85,-85,-91,-11,-15,-10,-12,-14,-6,0,0,0,0,0,0,0,0,0,0,0,0,0,0,0,0,0,0,0,0,0,0,0]} 1. e4 {[%emt 0:00:10]} c5 {[%emt 0:01:01]} 2. Nf3 {[%emt 0:00:11]} Nc6 {[%emt 0:01:05]} 3. d4 {[%emt 0:00:14]} cxd4 {[%emt 0:00:09]} 4. Nxd4 {[%emt 0:00:05]} g6 {[%emt 0:01:16]} 5. c4 {[%emt 0:01:00]} Nf6 {[%emt 0:01:48]} 6. Nc3 {[%emt 0:00:21]} Nxd4 {[%emt 0:00:59]} 7. Qxd4 {[%emt 0:00:19]} d6 {[%emt 0:00:11]} 8. Be3 {[%emt 0:05:07]} Bg7 {[%emt 0:00:21]} 9. f3 {[%emt 0:00:33]} O-O {[%emt 0:00:52]} 10. Qd2 {[%emt 0:00:05]} Be6 {[%emt 0:02:19]} 11. Rc1 {[%emt 0:00:14]} a5 {[%emt 0:03:36]} 12. b3 {[%emt 0:03:55]} Nd7 {[%emt 0:06:29]} 13. Be2 {[%emt 0:02:27]} Rc8 {[%emt 0:28:25]} 14. O-O {[%emt 0:02:57]} Nc5 {[%emt 0:00:47]} 15. Rfe1 {[%emt 0:10:23] B36: Sicilian: Maroczy Bind: Gurgenidze System.} Re8 $146 {[%emt 0:02:53]} (15... Qb6 16. Nd5 Bxd5 17. cxd5 Rc7 18. Rc4 Qa7 19. a3 b6 20. b4 axb4 21. axb4 Nd7 22. Rxc7 Qxc7 {½-½ Kratimenou,M (1417)-Kaliontzaki,A (1395) GRE-ch U16 Girls 2022 (6)}) 16. Bf1 {[%emt 0:00:56]} Qb6 {[%emt 0:01:54]} 17. Nb5 {[%emt 0:00:36] White is slightly better.} Bd7 {[%emt 0:01:23]} 18. Bf2 {[%emt 0:05:02]} Red8 {[%emt 0:04:33]} 19. f4 {[%emt 0:05:51]} Qa6 {[%emt 0:05:13]} 20. Nc3 {[%emt 0:05:08]} (20. f5 {looks sharper.} Be5 21. Qh6 Bg7 22. Qh3) 20... e6 {[%emt 0:03:11] Repels Nd5} 21. Qe3 {[%emt 0:20:03]} Qa8 {[%emt 0:08:26] [#]} 22. Bh4 $1 {[%emt 0:01:29]} Re8 {[%emt 0:00:15]} 23. Rcd1 {[%emt 0:03:20]} Qb8 {[%emt 0:01:23]} 24. e5 {[%emt 0:02:58]} dxe5 {[%emt 0:01:16] White has a queen side majority} 25. fxe5 {[%emt 0:00:06]} Qc7 {[%emt 0:03:47]} 26. Bf6 {[%emt 0:03:21]} b6 {[%emt 0:02:42]} (26... Bf8 $1 $14) 27. Rd4 {[%emt 0:01:01] [#] Hoping for Rh4. White has more active pieces.} Bc6 {[%emt 0:01:15]} 28. Rh4 {[%emt 0:00:32]} ({White should play} 28. Be2 $14) 28... Bxf6 $11 {[%emt 0:02:17]} 29. exf6 {[%emt 0:00:39] Qh6 would kill now.} Nd7 {[%emt 0:00:58]} 30. Qg5 {[%emt 0:07:57]} Qd6 {[%emt 0:02:08] Against Bd3} 31. Rd1 {[%emt 0:07:32] Wards off e5} Qc5+ {[%emt 0:04:10]} 32. Qxc5 {[%emt 0:00:06]} bxc5 {[%emt 0:00:11]} 33. Rf4 {[%emt 0:01:43]} e5 {[%emt 0:02:45]} 34. Rf2 {[%emt 0:00:35]} Re6 {[%emt 0:00:26]} 35. Nd5 {[%emt 0:07:09]} (35. g3 $11 Rxf6 (35... Nxf6 $2 36. Bh3 $18) 36. Bg2 Rxf2 37. Kxf2) 35... Bxd5 $15 {[%emt 0:02:37]} 36. cxd5 {[%emt 0:00:08]} Rd6 {[%emt 0:00:54]} 37. Re1 {[%emt 0:01:18]} Nxf6 {[%emt 0:00:43]} 38. h3 {[%emt 0:00:27]} (38. Rxe5 $2 {perishes.} Ng4 (38... Rxd5 39. Rxd5 Nxd5 40. Bc4 $11) (38... Nxd5 39. Rd2 $11) 39. Ree2 Nxf2 (39... Rxd5 40. Rf4 $17) 40. Rxf2 Rxd5 $19) 38... Nd7 {[%emt 0:02:59]} ({Reject} 38... Nxd5 $6 39. Rd2 $11) (38... e4 $17 {[%cal Og8g7]} 39. Bb5 Rb8 (39... Nxd5 40. Rd2 $15)) 39. Bb5 $11 {[%emt 0:00:47] The position is equal.} Kg7 {[%emt 0:01:01]} 40. Bxd7 {[%emt 0:00:40]} Rxd7 {[%emt 0:00:07]} 41. Rxe5 {[%emt 0:30:01][%mdl 4096] Endgame KRR-KRR} c4 {[%emt 0:13:19]} 42. Rc2 {[%emt 0:00:00]} Kf6 {[%emt 0:00:52]} 43. Re4 {[%emt 0:00:00]} Rxd5 {[%emt 0:00:37]} 44. Rexc4 {[%emt 0:00:00]} Rxc4 {[%emt 0:04:04]} 45. Rxc4 {[%emt 0:00:00] KR-KR} h5 {[%emt 0:03:03]} 46. h4 {[%emt 0:00:00]} Ke5 {[%emt 0:00:45]} 47. Ra4 {[%emt 0:00:00]} f6 {[%emt 0:01:54]} 48. Kf2 {[%emt 0:00:00]} g5 {[%emt 0:00:55]} 49. hxg5 {[%emt 0:00:00]} fxg5 {[%emt 0:00:07]} 50. Kf3 {[%emt 0:00:00]} Rd3+ {[%emt 0:01:25]} 51. Ke2 {[%emt 0:00:00]} Rd5 {[%emt 0:00:05]} 52. Kf3 {[%emt 0:00:00]} Rd3+ {[%emt 0:00:18] Weighted Error Value: White=0.11 (very precise) /Black=0.10 (very precise)   Mistake:       	White=2     	Black=2      Inaccurate:     	White=1     	Black=2      OK:         	White=17    	Black=10     Best:        	White=3     	Black=5      Strong:       	White=1     	---} 1/2-1/2

[Event "FIDE WSTC Open 50 2025"]
[Site "Prague"]
[Date "2025.02.25"]
[Round "8.3"]
[White "Hebden, Mark L"]
[Black "Novikov, Igor"]
[Result "0-1"]
[Annotator "TA"]
[ECO "D02"]
[WhiteElo "2363"]
[BlackElo "2490"]
[PlyCount "116"]
[EventDate "2025.02.17"]
[EventType "team-tourn"]
[EventCountry "CZE"]
[SourceTitle "playchess.com"]
[Source "ChessBase"]
[SourceQuality "1"]
[TimeControl "40/5400+30:1800+30"]

{[%evp 9,116,6,2,0,10,-12,12,10,26,0,0,3,9,-32,-37,-56,-49,-65,-57,-60,-61,-45,-47,-59,0,0,5,5,0,0,6,0,0,-5,-3,-10,14,0,25,-16,-16,-16,-16,-20,-16,-14,-13,-22,-10,-12,-12,-59,-59,-80,-100,-93,-58,-79,-74,-102,-91,-129,-132,-128,-125,-120,-123,-125,-113,-227,-227,-228,-228,-280,-293,-387,-307,-347,-312,-310,-302,-301,-279,-482,-475,-483,-479,-577,-575,-531,-600,-599,-627,-595,-523,-635,-537,-1079,-933,-955,-854,-1163,-1160,-1106,-1105,-1046,-1065,-972,-945]} 1. d4 {[%emt 0:00:17]} d5 {[%emt 0:00:07]} 2. Nf3 {[%emt 0:00:30]} Nf6 {[%emt 0:00:09]} 3. Bf4 {[%emt 0:00:28]} c5 {[%emt 0:00:42]} 4. e3 {[%emt 0:01:28]} Qb6 {[%emt 0:00:47]} 5. Nc3 {[%emt 0:02:56]} a6 {[%emt 0:01:26]} 6. dxc5 {[%emt 0:03:02] D02: 1 d4 d5 2 Nf3 sidelines, including 2...Nf6 3 g3 and 2...Nf6 3 Bf4.} Qxc5 {[%emt 0:00:21]} 7. Bd3 {[%emt 0:04:09]} Nbd7 {[%emt 0:08:10]} 8. O-O {[%emt 0:04:17] The position is equal.} g6 {[%emt 0:01:31]} 9. a4 $146 {[%emt 0:14:10]} (9. Re1 Bg7 10. Ne5 Nh5 11. Ng4 Nxf4 12. exf4 O-O 13. f5 h5 14. Ne3 Nb6 15. fxg6 {1-0 Buecker,P (1325)-Anh,D (1041) GER-ch U25-C 2023 (5)}) 9... Bg7 {[%emt 0:19:18]} 10. h3 {[%emt 0:08:49]} b6 {[%emt 0:03:37]} 11. Bh2 {[%emt 0:02:33]} Bb7 {[%emt 0:02:55]} 12. Ne5 {[%emt 0:03:26]} O-O {[%emt 0:02:14]} 13. Be2 {[%emt 0:06:45]} Rfd8 {[%emt 0:03:06]} 14. Qd4 {[%emt 0:07:38]} Rac8 {[%emt 0:04:13]} 15. Rfd1 {[%emt 0:02:16]} e6 {[%emt 0:05:23]} 16. Ra3 {[%emt 0:08:22]} Qxd4 {[%emt 0:12:54]} (16... Ne8 $15) 17. exd4 $11 {[%emt 0:00:27]} Nxe5 {[%emt 0:01:13]} 18. Bxe5 {[%emt 0:01:01]} Nd7 {[%emt 0:00:45]} 19. Bxg7 {[%emt 0:02:27]} Kxg7 {[%emt 0:00:03]} 20. f4 {[%emt 0:00:19]} h5 {[%emt 0:03:13]} 21. Rd2 {[%emt 0:01:32]} Nf6 {[%emt 0:01:45][%cal Bd7f6,Bf6e8,Be8d6,Bd6c4,Bc4d2][%mdl 32]} 22. h4 {[%emt 0:04:01]} Ne8 {[%emt 0:00:38]} 23. Rb3 {[%emt 0:01:35]} Rc6 {[%emt 0:00:17]} 24. Bd3 {[%emt 0:01:29]} Nd6 {[%emt 0:01:13]} 25. Kf2 {[%emt 0:00:44]} Nc4 {[%emt 0:06:35]} 26. Rd1 {[%emt 0:02:33]} Bc8 {[%emt 0:06:09]} 27. Ne2 {[%emt 0:01:40]} Bd7 {[%emt 0:00:29]} 28. Ra1 {[%emt 0:00:55]} Rb8 {[%emt 0:02:05]} 29. Ra2 {[%emt 0:01:08]} Rcc8 {[%emt 0:01:37]} 30. Ng1 {[%emt 0:05:08]} (30. Rc3 $11) 30... Nd2 $15 {[%emt 0:03:56]} 31. Rc3 {[%emt 0:01:37]} Rxc3 {[%emt 0:02:31]} 32. bxc3 {[%emt 0:00:06][%cal Of2e3]} b5 {[%emt 0:00:41]} 33. axb5 {[%emt 0:00:54]} Bxb5 {[%emt 0:00:07] Black converts the advantage convincingly.} 34. Ne2 {[%emt 0:00:53]} Nc4 {[%emt 0:00:42] Black is more active.} 35. Nc1 {[%emt 0:00:38]} Nd6 {[%emt 0:01:21]} 36. g3 {[%emt 0:02:05]} Rc8 {[%emt 0:02:08]} 37. Ne2 {[%emt 0:01:14]} Rc6 {[%emt 0:00:29]} 38. Ke3 {[%emt 0:00:23]} Kf6 {[%emt 0:00:09]} 39. Ra5 {[%emt 0:02:47] [#]} (39. Ra3 $17) 39... Nc4+ $1 $19 {[%emt 0:01:53]} 40. Bxc4 {[%emt 0:00:07]} Rxc4 {[%emt 0:00:13][%mdl 4096] Endgame KRB-KRN} 41. Ra1 {[%emt 0:32:00]} Kf5 {[%emt 0:04:49]} 42. Rg1 {[%emt 0:00:00]} Kg4 {[%emt 0:01:52]} 43. Kd2 {[%emt 0:00:00]} Rc7 {[%emt 0:02:41]} 44. Nc1 {[%emt 0:00:00]} Kh3 {[%emt 0:02:27]} 45. Nd3 {[%emt 0:00:00]} Kh2 {[%emt 0:00:24]} 46. Re1 {[%emt 0:00:00]} (46. Rb1) 46... Bxd3 {[%emt 0:02:00] Black is clearly winning.} (46... Kxg3 $2 47. Ne5 $19) 47. cxd3 {[%emt 0:00:00]} Kxg3 {[%emt 0:00:06] KR-KR. Black is a pawn up.} 48. Rc1 {[%emt 0:00:00]} Kxh4 {[%emt 0:05:37]} 49. c4 {[%emt 0:00:00]} Kg4 {[%emt 0:00:43]} 50. Ke3 {[%emt 0:00:00]} a5 {[%emt 0:02:07]} 51. Rg1+ {[%emt 0:00:00]} Kf5 {[%emt 0:00:07]} 52. Rg5+ {[%emt 0:00:00]} Kf6 {[%emt 0:00:04]} 53. cxd5 {[%emt 0:00:00]} exd5 {[%emt 0:00:17]} (53... a4 $2 54. dxe6 Ra7 (54... fxe6 55. Ra5 $17) 55. exf7 Kxf7 56. f5 $19) 54. Rxd5 {[%emt 0:00:00]} Ra7 {[%emt 0:00:11] [#]} ({Not} 54... a4 55. Ra5 $17) 55. Kd2 {[%emt 0:00:00]} a4 {[%emt 0:00:15] And now ...a3 would win.} 56. Kc2 {[%emt 0:00:00]} a3 {[%emt 0:00:10] ( -> ...a2)} 57. Kb1 {[%emt 0:00:00]} a2+ {[%emt 0:00:14]} 58. Ka1 {[%emt 0:00:00]} Ra3 {[%emt 0:00:09] Weighted Error Value: White=0.32/Black=0.07 (flawless)   Mistake:       	White=3     	Black=1      Inaccurate:     	White=6     	Black=1      OK:         	White=12    	Black=17     Best:        	White=2     	Black=4      Strong:       	---       	Black=1} 0-1

[Event "FIDE WSTC Open 50 2025"]
[Site "Prague"]
[Date "2025.02.25"]
[Round "8.4"]
[White "Rachels, Stuart"]
[Black "Emms, John M"]
[Result "1/2-1/2"]
[Annotator "TA"]
[ECO "C78"]
[WhiteElo "2466"]
[BlackElo "2409"]
[PlyCount "37"]
[EventDate "2025.02.17"]
[EventType "team-tourn"]
[EventCountry "CZE"]
[SourceTitle "playchess.com"]
[Source "ChessBase"]
[SourceQuality "1"]
[TimeControl "40/5400+30:1800+30"]

{[%evp 12,37,51,45,52,15,13,0,40,0,0,0,17,0,6,9,22,8,4,0,29,43,47,27,42,0,37,33]} 1. e4 {[%emt 0:00:03]} e5 {[%emt 0:00:36]} 2. Nf3 {[%emt 0:00:07]} Nc6 {[%emt 0:00:09]} 3. Bb5 {[%emt 0:00:06][%cal Bf1b5,Bb5a4,Ba4b3][%mdl 32]} a6 {[%emt 0:00:41]} 4. Ba4 {[%emt 0:00:05]} Nf6 {[%emt 0:00:18]} 5. O-O {[%emt 0:00:06]} b5 {[%emt 0:01:49]} 6. Bb3 {[%emt 0:00:06]} Bc5 {[%emt 0:00:06] is cutting edge theory.} 7. a4 {[%emt 0:00:34]} Rb8 {[%emt 0:01:35] C78: Ruy Lopez: Archangelsk and Möller Defences.} 8. d3 {[%emt 0:03:26]} d6 {[%emt 0:02:52]} 9. c3 {[%emt 0:01:29]} h6 {[%emt 0:01:02] The position is equal.} 10. Nbd2 {[%emt 0:07:03][%cal Bb1d2,Bd2f1,Bf1g3][%mdl 32]} O-O {[%emt 0:00:20]} 11. Re1 {[%emt 0:02:46]} Ne7 {[%emt 0:10:09]} 12. Nf1 {[%emt 0:09:28]} Ng6 {[%emt 0:01:40]} 13. Ng3 {[%emt 0:02:28]} Re8 {[%emt 0:03:57]} 14. h3 {[%emt 0:02:26]} Bb6 {[%emt 0:04:05]} 15. Bd2 $146 {[%emt 0:10:00]} ({Predecessor:} 15. d4 c5 16. Bc2 Qc7 17. axb5 axb5 18. Be3 Bd7 19. Qd2 cxd4 20. cxd4 exd4 21. Nxd4 Ne5 22. Ndf5 Bxe3 23. Nxe3 Nc4 24. Qc3 Qc5 25. b4 {½-½ Tarlev,K (2589)-Kourkoulos Arditis,S (2527) ROM-chT Eforie Nord 2023 (7.1)}) 15... c6 {[%emt 0:18:16]} 16. d4 {[%emt 0:02:43]} Be6 {[%emt 0:17:01]} 17. axb5 {[%emt 0:04:58] [#] Bxe6 is the strong threat.} axb5 {[%emt 0:00:47]} 18. Qc2 {[%emt 0:05:37]} Qc7 {[%emt 0:04:18]} 19. Bxe6 {[%emt 0:10:14] Weighted Error Value: White=0.15 (very precise) /Black=0.13 (very precise)   Inaccurate:     	White=3     	Black=3      OK:         	White=2     	Black=2      Best:        	White=1     	---} 1/2-1/2

[Event "FIDE WSTC Open 50 2025"]
[Site "Prague"]
[Date "2025.02.25"]
[Round "8.5"]
[White "Kazhgaleyev, Murtas"]
[Black "Ftacnik, Lubomir"]
[Result "1-0"]
[Annotator "TA"]
[ECO "B23"]
[WhiteElo "2495"]
[BlackElo "2438"]
[PlyCount "101"]
[EventDate "2025.02.17"]
[EventType "team-tourn"]
[EventCountry "CZE"]
[SourceTitle "playchess.com"]
[Source "ChessBase"]
[SourceQuality "1"]
[TimeControl "40/5400+30:1800+30"]

{[%evp 9,101,19,38,31,34,30,35,27,39,26,37,6,62,52,60,50,60,29,136,150,163,168,168,142,150,150,172,88,82,70,83,12,14,14,197,212,219,219,209,206,201,201,199,183,235,223,271,275,358,358,357,347,323,256,252,254,258,266,264,265,267,256,262,255,249,238,345,340,325,333,337,318,355,357,400,395,408,398,385,326,750,750,747,749,1522,1387,1429,886,29985,29986,29986,29987,29987,29988]} 1. e4 {[%emt 0:00:07]} c5 {[%emt 0:00:32]} 2. Nc3 {[%emt 0:00:12]} a6 {[%emt 0:01:07]} 3. Nge2 {[%emt 0:01:05]} d6 {[%emt 0:03:38]} 4. g3 {[%emt 0:00:17]} Nc6 {[%emt 0:00:13]} 5. Bg2 {[%emt 0:00:15]} g6 {[%emt 0:00:56]} 6. d4 {[%emt 0:03:45] B23: Closed Sicilian: Lines without g3.} cxd4 {[%emt 0:00:55]} 7. Nxd4 {[%emt 0:00:04]} Bg7 {[%emt 0:00:28]} 8. Nxc6 {[%emt 0:01:25] White is slightly better.} bxc6 {[%emt 0:00:13]} 9. O-O {[%emt 0:00:11][%cal Oe4e5]} Rb8 {[%emt 0:10:29]} 10. Qe2 {[%emt 0:04:18]} e6 $146 {[%emt 0:04:54]} (10... Qc7 $11) ({Predecessor:} 10... a5 11. Rd1 Qc7 12. h3 Nf6 13. b3 O-O 14. Rb1 Nd7 15. Na4 c5 16. Bg5 Re8 {1-0 Nuri,M (2206)-Narayanan,S (2483) Wch U20 52nd 2013 (1)}) 11. Qd3 {[%emt 0:10:17]} Ne7 {[%emt 0:14:21]} 12. b3 {[%emt 0:00:37]} O-O {[%emt 0:02:21]} 13. Ba3 {[%emt 0:00:43]} Qa5 {[%emt 0:16:57]} (13... c5 $11 {keeps the balance.}) 14. Qxd6 {[%emt 0:03:29][%cal Oc3a4]} Rb7 {[%emt 0:00:15] [#]} 15. Na4 Bxa1 {[%emt 0:03:38]} 16. Rxa1 {[%emt 0:03:06]} Rd8 {[%emt 0:01:01]} 17. Qf4 {[%emt 0:04:40][%mdl 1024] White has strong compensation. White is more active.} Qd2 18. Qh4 {[%emt 0:09:33]} (18. Qf6 $18 Qd4 19. Qxd4 (19. Bxe7 Rxe7 20. Qxd4 Rxd4 $15) 19... Rxd4 20. Bc5) 18... g5 $16 {[%emt 0:02:35]} 19. Qh6 {[%emt 0:03:54] [#]} Ng6 {[%emt 0:00:45][%cal Og5g4]} 20. Rf1 {[%emt 0:08:31]} ({White should play} 20. Nc5 $16) 20... f6 $11 {[%emt 0:09:22][%cal Ob7f7]} 21. e5 $36 {[%emt 0:01:29][%mdl 2048] White has good play.} fxe5 {[%emt 0:02:35] Black cannot hold the game after this.} (21... g4 $11 {and Black is okay.} 22. Qxd2 Rxd2) 22. Nc5 $18 {[%emt 0:01:05]} (22. Bxc6 Rf7 $11) (22. Bc1 Qxc2 23. Nb2 (23. Qxg5 Rd1 $14) 23... g4 $14) 22... g4 {[%emt 0:09:45]} 23. Qxd2 {[%emt 0:03:45]} Rxd2 {[%emt 0:00:03]} 24. Nxb7 {[%emt 0:00:11]} (24. Bxc6 $6 Rc7 25. Be4 Rd4 $16) 24... Bxb7 {[%emt 0:00:01]} 25. Be4 {[%emt 0:01:01]} Rd7 {[%emt 0:01:33]} 26. f3 {[%emt 0:01:51]} gxf3 {[%emt 0:01:16]} (26... c5 $142 27. Bxb7 (27. Bxc5 Bxe4 28. fxe4 Rd2 $16) 27... Rxb7 28. fxg4 (28. Bxc5 Rc7 $18) 28... Rb5) 27. Rxf3 {[%emt 0:00:28]} Ne7 {[%emt 0:01:22]} 28. Rf6 {[%emt 0:03:30]} Nd5 {[%emt 0:05:38]} 29. Rxe6 {[%emt 0:02:09]} Nc3 {[%emt 0:00:32]} 30. Bd3 {[%emt 0:06:37] A strong pair of Bishops.} (30. Rxe5 Nxe4 31. Rxe4 Kf7 $16) (30. Bxc6 Rd1+ 31. Kg2 Rd2+ 32. Kf3 Bxc6+ 33. Rxc6 e4+ 34. Kf4 Rxc2 35. Rxa6 Rxa2 $11) 30... Nb5 {[%emt 0:03:34]} 31. Re7 {[%emt 0:04:28]} (31. Bb2 Nd4 $18) 31... Rxe7 {[%emt 0:00:24]} 32. Bxe7 {[%emt 0:00:13][%mdl 4096] Endgame KBB-KBN. White is a pawn up.} Kf7 {[%emt 0:01:36]} 33. Bc5 {[%emt 0:00:10]} h5 {[%emt 0:00:53]} 34. Kf2 {[%emt 0:00:44]} Nc3 {[%emt 0:00:44]} 35. a4 {[%emt 0:02:48]} Bc8 {[%emt 0:00:55]} 36. Ke3 {[%emt 0:03:11]} Nd5+ {[%emt 0:00:09]} 37. Kd2 {[%emt 0:00:07]} Ke6 {[%emt 0:01:12]} (37... Nf6 $142 38. a5 Ng4) 38. Bg6 {[%emt 0:03:12]} Nf6 {[%emt 0:00:36]} 39. Bf8 {[%emt 0:03:57]} Kd5 {[%emt 0:01:44]} 40. Be7 {[%emt 0:05:55]} Ng4 {[%emt 0:00:42]} 41. h4 {[%emt 0:31:33][%cal Bh2h4,Bh4h5,Bh5h6,Bh6h7][%mdl 32]} ({Don't play} 41. Bxh5 Nxh2 42. Be2 Ng4 $18) 41... Nh6 {[%emt 0:04:25]} 42. Bxh5 {[%emt 0:00:00]} Nf5 {[%emt 0:02:36]} 43. Bf7+ {[%emt 0:00:00]} Ke4 {[%emt 0:01:21]} 44. Bf8 {[%emt 0:00:00]} Kf3 $2 {[%emt 0:03:34]} (44... Nxg3 45. h5 Bf5) 45. h5 {[%emt 0:00:00]} Nxg3 {[%emt 0:06:58]} 46. Bg6 {[%emt 0:00:00]} Bf5 {[%emt 0:01:54]} 47. Bxf5 {[%emt 0:00:00][%cal Oh5h6] and h6! would now be decisive} Nxf5 {[%emt 0:00:02]} 48. h6 {[%emt 0:00:00] h7 would kill now.} e4 {[%emt 0:00:17][%cal Be5e4,Be4e3][%mdl 32]} 49. h7 {[%emt 0:00:00] White mates.} e3+ {[%emt 0:00:07]} 50. Kd3 {[%emt 0:00:00]} e2 {[%emt 0:00:13]} 51. Bb4 {[%emt 0:00:00] Weighted Error Value: White=0.11 (very precise) /Black=0.45  Loses game:     	---       	Black=1      Mistake:       	White=2     	Black=5      Inaccurate:     	White=2     	Black=1      OK:         	White=18    	Black=20     Best:        	White=1     	Black=2} (51. h8=N e1=Q (51... e1=R 52. Nf7 $17) 52. Bc5 Qe4+ 53. Kc3 Ne3 54. Nf7 Qxc2+ 55. Kd4 Qb2+ (55... Qxb3 $2 56. Ng5+ Ke2 57. Ke5 $19) (55... Nf5+ {is a self mate.} 56. Ke5 Qxc5+ 57. Ke6 Qd5+ 58. Kf6 Kf4 59. b4 Qd7 60. b5 Qe7+ 61. Kg6 Qe6+ 62. Kh7 Qxf7+ 63. Kh8 Qg7#) 56. Kd3 Qb1+ (56... Qxb3+ 57. Kd4 Qd5+ 58. Kc3 Nd1+ 59. Kc2 Ke2 60. Ba3 Qd3+ 61. Kc1 Qxa3+ 62. Kc2 Qb2#) 57. Kd4 Qa1+ (57... Qxb3 $2 58. Ng5+ Ke2 59. Ke5 $19) (57... Ke2 $2 58. Bd6 $19) 58. Kd3 Qd1+ 59. Kc3 Nd5+ 60. Kb2 Qd2+ 61. Kb1 Nc3+ 62. Ka1 Qc1#) 1-0